fUSD/lending_fUSD_20250417
["ID","MTS","AMOUNT","RATE_DAILY","PERIOD"]
[358286814,1744896652527,-2565.0,0.0058,120]
[358286816,1744896652537,-2565.0,0.0058,120]
[358286818,1744896652547,-2565.0,0.0058,120]
[358286820,1744896652556,-2565.0,0.0058,120]
[358286822,1744896652565,-2565.0,0.0058,120]
[358286824,1744896652575,-2565.0,0.0058,120]
[358286826,1744896652584,-2565.0,0.0058,120]
[358286828,1744896652593,-2565.0,0.0058,120]
[358286830,1744896652602,-2565.0,0.0058,120]
[358286832,1744896652612,-2565.0,0.0058,120]
[358286833,1744896652622,-2565.0,0.0058,120]
[358286835,1744896652632,-2565.0,0.0058,120]
[358286837,1744896652642,-2565.0,0.0058,120]
[358286839,1744896652652,-2565.0,0.0058,120]
[358286841,1744896652662,-2565.0,0.0058,120]
[358286843,1744896652672,-2565.0,0.0058,120]
[358286845,1744896652681,-2565.0,0.0058,120]
[358286846,1744896652692,-2565.0,0.0058,120]
[358286847,1744896652704,-1314.0,0.0058,120]
[358286848,1744896652714,-1314.0,0.0058,120]
[358286849,1744896652724,-1314.0,0.0058,120]
[358286850,1744896652734,-1314.0,0.0058,120]
[358286851,1744896652744,-1314.0,0.0058,120]
[358286852,1744896652754,-1314.0,0.0058,120]
[358286853,1744896652764,-1314.0,0.0058,120]
[358286854,1744896652774,-1314.0,0.0058,120]
[358286855,1744896652783,-1314.0,0.0058,120]
[358286856,1744896652793,-1314.0,0.0058,120]
[358286857,1744896652803,-1314.0,0.0058,120]
[358286858,1744896652814,-1314.0,0.0058,120]
[358286859,1744896652824,-1314.0,0.0058,120]
[358286860,1744896652834,-1314.0,0.0058,120]
[358286861,1744896652844,-1314.0,0.0058,120]
[358286862,1744896652854,-1314.0,0.0058,120]
[358286863,1744896652864,-1314.0,0.0058,120]
[358286864,1744896652874,-1314.0,0.0058,120]
[358286865,1744896652884,-1314.0,0.0058,120]
[358286866,1744896652894,-1314.0,0.0058,120]
[358286867,1744896652903,-1314.0,0.0058,120]
[358286868,1744896652913,-1314.0,0.0058,120]
[358286869,1744896652923,-1314.0,0.0058,120]
[358286870,1744896652933,-1314.0,0.0058,120]
[358286871,1744896652943,-1314.0,0.0058,120]
[358286872,1744896652953,-1314.0,0.0058,120]
[358286873,1744896652963,-1314.0,0.0058,120]
[358286874,1744896652973,-1314.0,0.0058,120]
[358286875,1744896652982,-1314.0,0.0058,120]
[358286876,1744896652993,-1314.0,0.0058,120]
[358286877,1744896653003,-1314.0,0.0058,120]
[358286878,1744896653013,-1314.0,0.0058,120]
[358286879,1744896653023,-1314.0,0.0058,120]
[358286880,1744896653033,-1314.0,0.0058,120]
[358286881,1744896653042,-1314.0,0.0058,120]
[358286882,1744896653052,-1314.0,0.0058,120]
[358286883,1744896653061,-1314.0,0.0058,120]
[358286884,1744896653071,-1314.0,0.0058,120]
[358286885,1744896653080,-1314.0,0.0058,120]
[358286886,1744896653090,-1314.0,0.0058,120]
[358286887,1744896653099,-1314.0,0.0058,120]
[358286888,1744896653109,-1314.0,0.0058,120]
[358286889,1744896653119,-1314.0,0.0058,120]
[358286890,1744896653128,-1314.0,0.0058,120]
[358286891,1744896653138,-1314.0,0.0058,120]
[358286892,1744896653147,-1314.0,0.0058,120]
[358286893,1744896653157,-1314.0,0.0058,120]
[358286894,1744896653166,-1314.0,0.0058,120]
[358286895,1744896653175,-1314.0,0.0058,120]
[358286896,1744896653184,-1314.0,0.0058,120]
[358286897,1744896653193,-1314.0,0.0058,120]
[358286898,1744896653203,-1314.0,0.0058,120]
[358286899,1744896653212,-1314.0,0.0058,120]
[358286900,1744896653222,-1314.0,0.0058,120]
[358286901,1744896653231,-69384.00000001,0.0058,120]
[358286902,1744896653240,-800.0,0.00580822,120]
[358286903,1744896653250,-50000.0,0.00582987,120]
[358286904,1744896653259,-1513501.72827525,0.00585676,120]
[358286905,1744896653269,-834.11263794,0.00586201,30]
[358286906,1744896653278,-800.0,0.00586301,120]
[358286907,1744896653288,-1023.5534716,0.00589,120]
[358286908,1744896653298,-1940.23226463,0.0059,30]
[358286909,1744896653312,-60000.00006378,0.0059,120]
[358286910,1744896653322,-481670.52413673,0.00590265,120]
[358286911,1744896653331,-800.0,0.00591781,120]
[358286912,1744896653341,-2000.0,0.00595,120]
[358286913,1744896653352,-623.45,0.00595693,120]
[358286914,1744896653361,-800.0,0.0059726,120]
[358286916,1744896653370,-152.0,0.00597705,4]
[358286917,1744896653379,-79090.04031599,0.005997,80]
[358286918,1744896653388,-50000.0,0.006,80]
[358286919,1744896653398,-2191.64794312,0.006,120]
[358286920,1744896653408,-997.0,0.006,120]
[358286921,1744896653418,-500.0,0.006,120]
[358286922,1744896653427,-5000.0,0.006,120]
[358286923,1744896653436,-151.0,0.006,120]
[358286924,1744896653445,-151.0,0.006,120]
[358286925,1744896653454,-350681.18459566,0.006,120]
[358286926,1744896653464,-1716.22916974,0.006,120]
[358286927,1744896653473,-178574.20140074,0.006,120]
[358286928,1744896653482,-800.0,0.0060274,120]
[358286929,1744896653492,-800.0,0.00608219,120]
[358286930,1744896653501,-5000.0,0.0061,120]
[358286931,1744896653510,-50000.0,0.00612725,120]
[358286932,1744896653520,-9073.19223632,0.006129,7]
[358286933,1744896653530,-800.0,0.00613698,120]
[358286934,1744896653539,-800.0,0.00619178,120]
[358286935,1744896653548,-4000.0,0.0062,120]
[358286936,1744896653558,-5533.76045954,0.0062,120]
[358286937,1744896653567,-4722.1683991,0.0062,120]
[358286938,1744896653576,-42207.24004,0.0062343,120]
[358286939,1744896653586,-800.0,0.00624657,120]
[358286940,1744896653595,-38299.43582189,0.0062767,120]
[358286941,1744896653605,-150.0,0.00628144,120]
[358286943,1744896653615,-9999.999999,0.0063,120]
[358286945,1744896653624,-800.0,0.00630137,120]
[358286946,1744896653633,-881.66783432,0.00632119,120]
[358286948,1744896653642,-800.0,0.00635616,120]
[358286950,1744896653652,-2000.0,0.006385,50]
[358286952,1744896653662,-23878.90625822,0.006399,30]
[358286954,1744896653672,-5000.0,0.0064,120]
[358286956,1744896653681,-800.0,0.00641096,120]
[358286957,1744896653691,-50000.0,0.00643981,120]
[358286959,1744896653700,-2000.0,0.00645,120]
[358286970,1744896653793,-800.0,0.00646575,120]
[358286972,1744896653803,-500.0,0.0065,120]
[358286974,1744896653812,-1291.50475579,0.0065142,120]
[358286976,1744896653822,-1147.71366965,0.0065142,120]
[358286978,1744896653831,-800.0,0.00652055,120]
[358286980,1744896653840,-2000.0,0.006532,55]
[358286982,1744896653850,-317.0,0.006551,120]
[358286984,1744896653860,-616.03,0.00657533,120]
[358286986,1744896653870,-616.03,0.00657533,120]
[358286988,1744896653879,-616.03,0.00657533,120]
[358286990,1744896653888,-616.03,0.00657533,120]
[358286992,1744896653897,-616.03,0.00657533,120]
[358286994,1744896653907,-616.03,0.00657533,120]
[358286995,1744896653916,-616.03,0.00657533,120]
[358286997,1744896653926,-616.03,0.00657533,120]
[358286999,1744896653936,-616.03,0.00657533,120]
[358287001,1744896653945,-616.03,0.00657533,120]
[358287003,1744896653955,-616.03,0.00657533,120]
[358287005,1744896653967,-616.03,0.00657533,120]
[358287007,1744896653976,-616.03,0.00657533,120]
[358287009,1744896653986,-616.03,0.00657533,120]
[358287011,1744896653996,-616.03,0.00657533,120]
[358287013,1744896654006,-616.03,0.00657533,120]
[358287015,1744896654015,-616.03,0.00657533,120]
[358287017,1744896654025,-616.03,0.00657533,120]
[358287019,1744896654035,-616.03,0.00657533,120]
[358287021,1744896654044,-616.03,0.00657533,120]
[358287023,1744896654053,-616.03,0.00657533,120]
[358287025,1744896654062,-616.03,0.00657533,120]
[358287027,1744896654072,-616.03,0.00657533,120]
[358287029,1744896654081,-616.22191596,0.00657533,120]
[358287031,1744896654090,-800.0,0.00657534,120]
[358287033,1744896654100,-7452.0545,0.006579,120]
[358287035,1744896654109,-500.0,0.006579,120]
[358287037,1744896654119,-500.0,0.00657999,120]
[358287039,1744896654129,-623.45,0.00657999,120]
[358287041,1744896654139,-2800.0,0.00658,120]
[358287043,1744896654148,-2800.0,0.00658,120]
[358287045,1744896654158,-2800.0,0.00658,120]
[358287047,1744896654167,-2800.0,0.00658,120]
[358287049,1744896654176,-2800.0,0.00658,120]
[358287051,1744896654186,-2800.0,0.00658,120]
[358287053,1744896654195,-2800.0,0.00658,120]
[358287054,1744896654204,-2800.0,0.00658,120]
[358287056,1744896654214,-2800.0,0.00658,120]
[358287059,1744896654224,-2800.0,0.00658,120]
[358287060,1744896654234,-2800.0,0.00658,120]
[358287063,1744896654244,-2800.0,0.00658,120]
[358287065,1744896654254,-2800.0,0.00658,120]
[358287066,1744896654263,-2800.0,0.00658,120]
[358287069,1744896654273,-2800.0,0.00658,120]
[358287071,1744896654283,-2800.0,0.00658,120]
[358287073,1744896654293,-2800.0,0.00658,120]
[358287075,1744896654306,-2800.0,0.00658,120]
[358287077,1744896654316,-2800.0,0.00658,120]
[358287079,1744896654326,-2800.0,0.00658,120]
[358287080,1744896654336,-2800.0,0.00658,120]
[358287082,1744896654346,-2800.0,0.00658,120]
[358287084,1744896654356,-2800.0,0.00658,120]
[358287086,1744896654367,-2800.0,0.00658,120]
[358287089,1744896654376,-2800.0,0.00658,120]
[358287090,1744896654388,-2800.0,0.00658,120]
[358287092,1744896654398,-2800.0,0.00658,120]
[358287094,1744896654407,-2800.0,0.00658,120]
[358287096,1744896654417,-2800.0,0.00658,120]
[358287098,1744896654426,-2800.0,0.00658,120]
[358287100,1744896654436,-2800.0,0.00658,120]
[358287102,1744896654445,-2800.0,0.00658,120]
[358287104,1744896654454,-2800.0,0.00658,120]
[358287106,1744896654464,-2800.0,0.00658,120]
[358287108,1744896654474,-2800.0,0.00658,120]
[358287110,1744896654483,-2800.0,0.00658,120]
[358287112,1744896654492,-2800.0,0.00658,120]
[358287114,1744896654501,-2800.0,0.00658,120]
[358287116,1744896654511,-2800.0,0.00658,120]
[358287118,1744896654522,-2800.0,0.00658,120]
[358287120,1744896654531,-2800.0,0.00658,120]
[358287122,1744896654541,-2800.0,0.00658,120]
[358287124,1744896654550,-1128.22,0.0066,120]
[358287126,1744896654560,-152.0,0.00662898,5]
[358287128,1744896654569,-800.0,0.00663014,120]
[358287130,1744896654579,-6762.9145292,0.00663368,120]
[358287132,1744896654588,-800.0,0.00668493,120]
[358287134,1744896654597,-5000.0,0.0067,120]
[358287136,1744896654605,-800.0,0.00673972,120]
[358287138,1744896654616,-50000.0,0.0067683,120]
[358287140,1744896654625,-10000.0,0.00678,120]
[358287142,1744896654635,-800.0,0.00679452,120]
[358287144,1744896654644,-23387.62031655,0.0068,120]
[358287146,1744896654653,-4163.75213492,0.0068,120]
[358287148,1744896654663,-605.80488364,0.0068,120]
[358287150,1744896654673,-419999.99999903,0.0068,120]
[358287152,1744896654683,-800.0,0.00684931,120]
[358287154,1744896654692,-2012.52875,0.006852,50]
[358287155,1744896654702,-8301.0,0.00689,120]
[358287157,1744896654711,-10000.81043667,0.00689,120]
[358287159,1744896654720,-3566.2294039,0.0069,120]
[358287161,1744896654729,-941.47,0.0069,120]
[358287163,1744896654739,-193.58286108,0.0069,30]
[358287165,1744896654749,-2023.08355341,0.0069,120]
[358287167,1744896654759,-1447.88399409,0.0069,120]
[358287169,1744896654769,-800.0,0.00690411,120]
[358287170,1744896654778,-6048.90000903,0.0069321,30]
[358287172,1744896654788,-800.0,0.0069589,120]
[358287174,1744896654797,-64981.43392582,0.006978,120]
[358287176,1744896654807,-3000.0,0.006985,50]
[358287178,1744896654816,-1000.0,0.0069863,120]
[358287180,1744896654826,-1000.0,0.0069863,120]
[358287182,1744896654836,-1000.0,0.0069863,120]
[358287184,1744896654845,-1000.0,0.0069863,120]
[358287185,1744896654854,-797.12134568,0.0069863,120]
[358287186,1744896654865,-16975.55695143,0.00698987,120]
[358287187,1744896654876,-39168.97523464,0.006998,120]
[358287188,1744896654886,-50000.0,0.007,80]
[358287189,1744896654895,-1193.0,0.007,120]
[358287190,1744896654905,-10000.0,0.007,120]
[358287191,1744896654914,-10148.0,0.007,120]
[358287192,1744896654924,-174.23,0.007,120]
[358287193,1744896654933,-1025.06939548,0.007,120]
[358287194,1744896654943,-5000.0,0.007,120]
[358287195,1744896654952,-24855.17094949,0.007,120]
[358287196,1744896654962,-5319.53232618,0.007,120]
[358287197,1744896654972,-1148.02291227,0.007,120]
[358287198,1744896654982,-5018.87242989,0.007,2]
[358287199,1744896654991,-3519.6183,0.007,120]
[358287200,1744896655000,-434.40861507,0.007,120]
[358287201,1744896655010,-899.03267897,0.007,120]
[358287202,1744896655020,-294.49191636,0.007,14]
[358287203,1744896655029,-45111.59973183,0.007,120]
[358287204,1744896655039,-10000.0,0.00701,120]
[358287205,1744896655049,-800.0,0.0070137,120]
[358287206,1744896655058,-10000.0,0.00702,120]
[358287207,1744896655067,-10000.0,0.00703,120]
[358287208,1744896655076,-10000.0,0.00704,120]
[358287209,1744896655086,-10000.0,0.00705,120]
[358287210,1744896655095,-222.0,0.00705,120]
[358287211,1744896655105,-623.45,0.00705999,120]
[358287212,1744896655115,-10000.0,0.00706,120]
[358287213,1744896655124,-872.8,0.007065,2]
[358287214,1744896655133,-2293.32,0.007065,2]
[358287215,1744896655143,-9451.79,0.007065,2]
[358287216,1744896655153,-1890.35,0.007065,2]
[358287217,1744896655163,-800.0,0.00706849,120]
[358287218,1744896655172,-10000.0,0.00707,120]
[358287219,1744896655181,-10000.0,0.00708,120]
[358287220,1744896655190,-10000.0,0.00709,120]
[358287221,1744896655200,-4850.0,0.00709133,120]
[358287222,1744896655209,-872.8,0.007093,2]
[358287223,1744896655218,-2293.32,0.007093,2]
[358287224,1744896655227,-9451.79,0.007093,2]
[358287225,1744896655236,-1890.35,0.007093,2]
[358287226,1744896655245,-223.0,0.007094,120]
[358287227,1744896655254,-222.9999999,0.007094,120]
[358287228,1744896655263,-10000.0,0.0071,120]
[358287229,1744896655271,-266.67322323,0.00710504,120]
[358287230,1744896655280,-150.0,0.00710504,120]
[358287231,1744896655289,-150.0,0.00710504,120]
[358287232,1744896655298,-150.0,0.00710504,120]
[358287233,1744896655310,-150.0,0.00710504,120]
[358287234,1744896655319,-150.0,0.00710504,120]
[358287235,1744896655329,-150.0,0.00710504,120]
[358287236,1744896655338,-10000.0,0.00711,120]
[358287237,1744896655347,-872.8,0.007111,2]
[358287238,1744896655356,-2293.32,0.007111,2]
[358287239,1744896655366,-9451.79,0.007111,2]
[358287240,1744896655375,-1890.35,0.007111,2]
[358287241,1744896655385,-266.67322323,0.00711302,120]
[358287242,1744896655394,-50000.0,0.00711355,120]
[358287243,1744896655404,-150.0,0.00711479,120]
[358287244,1744896655414,-150.0,0.00711777,120]
[358287245,1744896655424,-10000.0,0.00712,120]
[358287246,1744896655433,-266.67322323,0.00712099,120]
[358287247,1744896655443,-800.0,0.00712329,120]
[358287248,1744896655452,-150.0,0.00712453,120]
[358287249,1744896655462,-266.67322323,0.00712896,120]
[358287250,1744896655550,-10000.0,0.00713,120]
[358287251,1744896655560,-150.0,0.00713051,120]
[358287252,1744896655570,-150.0,0.00713051,120]
[358287253,1744896655579,-150.0,0.00713405,120]
[358287254,1744896655590,-150.0,0.00713428,120]
[358287255,1744896655599,-266.67322323,0.00713694,120]
[358287256,1744896655609,-10000.0,0.00714,120]
[358287257,1744896655619,-150.0,0.00714324,120]
[358287258,1744896655629,-150.0,0.00714403,120]
[358287259,1744896655638,-266.67322323,0.00714491,120]
[358287260,1744896655648,-10000.0,0.00715,120]
[358287261,1744896655658,-266.67322323,0.00715289,120]
[358287262,1744896655668,-150.0,0.00715377,120]
[358287263,1744896655678,-150.0,0.00715597,120]
[358287264,1744896655687,-150.0,0.00715597,120]
[358287265,1744896655698,-10000.0,0.00716,120]
[358287266,1744896655708,-266.67322323,0.00716086,120]
[358287267,1744896655718,-150.0,0.00716352,120]
[358287268,1744896655727,-872.8,0.007167,2]
[358287269,1744896655737,-2293.32,0.007167,2]
[358287270,1744896655747,-9451.79,0.007167,2]
[358287271,1744896655756,-1890.35,0.007167,2]
[358287272,1744896655766,-150.0,0.00716871,120]
[358287273,1744896655777,-266.67322323,0.00716883,120]
[358287274,1744896655787,-10000.0,0.00717,120]
[358287275,1744896655797,-150.0,0.00717326,120]
[358287276,1744896655806,-266.67322323,0.00717681,120]
[358287277,1744896655816,-800.0,0.00717808,120]
[358287278,1744896655826,-10000.0,0.00718,120]
[358287279,1744896655836,-150.0,0.00718144,120]
[358287280,1744896655845,-150.0,0.00718144,120]
[358287281,1744896655855,-150.0,0.00718301,120]
[358287282,1744896655866,-266.67322323,0.00718478,120]
[358287283,1744896655875,-10000.0,0.00719,120]
[358287284,1744896655885,-266.67322323,0.00719276,120]
[358287285,1744896655895,-150.0,0.00719276,120]
[358287286,1744896655906,-150.0,0.00719417,120]
[358287287,1744896655915,-200.0,0.00719541,120]
[358287288,1744896655925,-200.0,0.00719541,120]
[358287289,1744896655935,-200.0,0.00719541,120]
[358287290,1744896655945,-200.0,0.00719541,120]
[358287291,1744896655955,-200.0,0.00719541,120]
[358287292,1744896655964,-200.0,0.00719541,120]
[358287293,1744896655973,-200.0,0.00719541,120]
[358287294,1744896655983,-200.0,0.00719541,120]
[358287295,1744896655992,-200.0,0.00719541,120]
[358287296,1744896656003,-285.0,0.00719541,120]
[358287297,1744896656012,-469.0,0.00719541,120]
[358287298,1744896656023,-200.0,0.00719541,120]
[358287299,1744896656033,-200.0,0.00719541,120]
[358287300,1744896656043,-200.0,0.00719541,120]
[358287301,1744896656053,-200.0,0.00719541,120]
[358287302,1744896656063,-200.0,0.00719541,120]
[358287303,1744896656072,-200.0,0.00719541,120]
[358287304,1744896656082,-200.0,0.00719541,120]
[358287305,1744896656092,-200.0,0.00719541,120]
[358287306,1744896656101,-200.0,0.00719541,120]
[358287307,1744896656111,-200.0,0.00719541,120]
[358287308,1744896656121,-200.0,0.00719541,120]
[358287309,1744896656130,-200.0,0.00719541,120]
[358287310,1744896656140,-200.0,0.00719541,120]
[358287311,1744896656149,-200.0,0.00719541,120]
[358287312,1744896656159,-200.0,0.00719541,120]
[358287313,1744896656168,-200.0,0.00719541,120]
[358287314,1744896656178,-200.0,0.00719541,120]
[358287315,1744896656188,-200.0,0.00719541,120]
[358287316,1744896656197,-200.0,0.00719541,120]
[358287317,1744896656206,-200.0,0.00719541,120]
[358287318,1744896656216,-200.0,0.00719541,120]
[358287319,1744896656226,-200.0,0.00719541,120]
[358287320,1744896656236,-200.0,0.00719541,120]
[358287321,1744896656246,-200.0,0.00719541,120]
[358287322,1744896656257,-200.0,0.00719541,120]
[358287323,1744896656266,-10000.0,0.0072,120]
[358287324,1744896656276,-150.0,0.0072,120]
[358287325,1744896656285,-266.67322323,0.00720073,120]
[358287326,1744896656295,-150.0,0.0072025,120]
[358287327,1744896656310,-150.0,0.00720691,120]
[358287328,1744896656319,-150.0,0.00720691,120]
[358287329,1744896656328,-266.67322323,0.00720871,120]
[358287330,1744896656338,-10000.0,0.00721,120]
[358287331,1744896656349,-150.0,0.00721225,120]
[358287332,1744896656359,-266.67322323,0.00721668,120]
[358287333,1744896656368,-603.24615042,0.00721765,120]
[358287334,1744896656377,-150.0,0.00721964,120]
[358287335,1744896656387,-9600.0,0.00722,120]
[358287336,1744896656397,-150.0,0.007222,120]
[358287337,1744896656407,-266.67322323,0.00722465,120]
[358287338,1744896656416,-150.0,0.00723174,120]
[358287339,1744896656426,-150.0,0.00723237,120]
[358287340,1744896656435,-150.0,0.00723237,120]
[358287341,1744896656444,-266.67322323,0.00723263,120]
[358287342,1744896656454,-800.0,0.00723288,120]
[358287343,1744896656464,-266.67322323,0.0072406,120]
[358287344,1744896656474,-150.0,0.00724149,120]
[358287345,1744896656483,-150.0,0.0072451,120]
[358287346,1744896656493,-266.67322323,0.00724858,120]
[358287347,1744896656503,-6688.0,0.00725,120]
[358287348,1744896656513,-150.0,0.00725124,120]
[358287349,1744896656524,-266.67322323,0.00725655,120]
[358287350,1744896656534,-150.0,0.00725784,120]
[358287351,1744896656545,-150.0,0.00725784,120]
[358287352,1744896656554,-150.0,0.00726098,120]
[358287353,1744896656564,-266.67322323,0.00726453,120]
[358287354,1744896656574,-150.0,0.00727057,120]
[358287355,1744896656584,-150.0,0.00727073,120]
[358287356,1744896656593,-266.67322323,0.0072725,120]
[358287357,1744896656603,-266.67322323,0.00728047,120]
[358287358,1744896656613,-150.0,0.00728047,120]
[358287359,1744896656624,-152.0,0.00728091,6]
[358287360,1744896656633,-150.0,0.0072833,120]
[358287361,1744896656643,-150.0,0.0072833,120]
[358287362,1744896656654,-800.0,0.00728767,120]
[358287363,1744896656663,-266.67322323,0.00728845,120]
[358287364,1744896656672,-150.0,0.00729022,120]
[358287365,1744896656682,-171.42771428,0.00729397,120]
[358287366,1744896656691,-150.0,0.00729604,120]
[358287367,1744896656701,-266.67322323,0.00729642,120]
[358287368,1744896656711,-150.0,0.00729997,120]
[358287369,1744896656722,-623.45,0.00729999,120]
[358287370,1744896656732,-999.0,0.0073,120]
[358287371,1744896656742,-2998.0,0.0073,120]
[358287372,1744896656752,-150.0,0.0073024,120]
[358287373,1744896656769,-266.67322323,0.0073044,120]
[358287374,1744896656779,-150.0,0.00730877,120]
[358287375,1744896656788,-150.0,0.00730877,120]
[358287376,1744896656798,-150.0,0.00730971,120]
[358287377,1744896656808,-266.67322323,0.00731237,120]
[358287378,1744896656818,-150.0,0.00731946,120]
[358287379,1744896656828,-266.67322323,0.00732035,120]
[358287380,1744896656838,-7522.86016233,0.007321,120]
[358287381,1744896656848,-150.0,0.0073215,120]
[358287382,1744896656858,-266.67322323,0.00732832,120]
[358287383,1744896656868,-150.0,0.00732921,120]
[358287384,1744896656878,-150.0,0.00733424,120]
[358287385,1744896656887,-150.0,0.00733424,120]
[358287386,1744896656897,-266.67322323,0.00733629,120]
[358287387,1744896656907,-150.0,0.00733895,120]
[358287388,1744896656916,-800.0,0.00734246,120]
[358287389,1744896656925,-266.67322323,0.00734427,120]
[358287390,1744896656935,-150.0,0.00734697,120]
[358287391,1744896656945,-150.0,0.0073487,120]
[358287392,1744896656954,-6688.0,0.00735,120]
[358287393,1744896656964,-6688.0,0.00735,120]
[358287394,1744896656973,-688.0,0.00735,120]
[358287395,1744896656983,-5963.029999,0.00735,120]
[358287396,1744896656994,-266.67322323,0.00735224,120]
[358287397,1744896657004,-150.0,0.00735844,120]
[358287398,1744896657015,-150.0,0.0073597,120]
[358287399,1744896657025,-150.0,0.0073597,120]
[358287400,1744896657035,-104197.02424221,0.00736,120]
[358287401,1744896657045,-266.67322323,0.00736022,120]
[358287402,1744896657055,-266.67322323,0.00736819,120]
[358287403,1744896657065,-150.0,0.00736819,120]
[358287404,1744896657074,-150.0,0.00737244,120]
[358287405,1744896657084,-171.42771428,0.00737479,120]
[358287406,1744896657094,-266.67322323,0.00737616,120]
[358287407,1744896657103,-150.0,0.00737794,120]
[358287408,1744896657113,-266.67322323,0.00738414,120]
[358287409,1744896657122,-150.0,0.00738517,120]
[358287410,1744896657132,-150.0,0.00738517,120]
[358287411,1744896657141,-150.0,0.00738768,120]
[358287412,1744896657231,-266.67322323,0.00739211,120]
[358287413,1744896657241,-800.0,0.00739726,120]
[358287414,1744896657250,-150.0,0.00739743,120]
[358287415,1744896657260,-150.0,0.0073979,120]
[358287416,1744896657270,-21408.84142536,0.007399,120]
[358287417,1744896657279,-266.67322323,0.00740009,120]
[358287418,1744896657289,-150.0,0.00740718,120]
[358287419,1744896657299,-266.67322323,0.00740806,120]
[358287420,1744896657311,-75163.85207468,0.00741,120]
[358287421,1744896657321,-150.0,0.00741063,120]
[358287422,1744896657331,-150.0,0.00741063,120]
[358287423,1744896657340,-266.67322323,0.00741604,120]
[358287424,1744896657350,-150.0,0.00741692,120]
[358287425,1744896657362,-150.0,0.00742337,120]
[358287426,1744896657372,-266.67322323,0.00742401,120]
[358287427,1744896657382,-150.0,0.00742667,120]
[358287428,1744896657392,-2000.0,0.00743,120]
[358287429,1744896657402,-2000.0,0.00743,120]
[358287430,1744896657411,-2000.0,0.00743,120]
[358287431,1744896657421,-2000.0,0.00743,120]
[358287432,1744896657430,-266.67322323,0.00743198,120]
[358287433,1744896657440,-5993.64235903,0.0074321,120]
[358287434,1744896657450,-150.0,0.0074361,120]
[358287435,1744896657462,-150.0,0.0074361,120]
[358287436,1744896657471,-150.0,0.00743641,120]
[358287437,1744896657482,-266.67322323,0.00743996,120]
[358287438,1744896657492,-150.0,0.00744616,120]
[358287439,1744896657501,-266.67322323,0.00744793,120]
[358287440,1744896657511,-150.0,0.00744883,120]
[358287441,1744896657521,-4513.089999,0.00745,120]
[358287442,1744896657531,-800.0,0.00745205,120]
[358287443,1744896657540,-171.42771428,0.00745534,120]
[358287444,1744896657550,-266.67322323,0.00745591,120]
[358287445,1744896657559,-150.0,0.00745591,120]
[358287446,1744896657570,-150.0,0.00746157,120]
[358287447,1744896657580,-150.0,0.00746157,120]
[358287448,1744896657589,-266.67322323,0.00746388,120]
[358287449,1744896657599,-150.0,0.00746565,120]
[358287450,1744896657608,-154.72,0.007467,87]
[358287451,1744896657617,-154.72,0.007467,87]
[358287452,1744896657627,-266.67322323,0.00747186,120]